[Event "World Junior U20 Girls 2018"]
[Site "Gebze"]
[Date "2018.09.12"]
[Round "8"]
[White "Yorgun, Yaren Naz"]
[Black "Hu, Yu A"]
[Result "0-1"]
[ECO "B96"]
[WhiteElo "1751"]
[BlackElo "2009"]
[Annotator "NA"]
[PlyCount "98"]
[EventDate "2018.09.05"]
[EventType "swiss"]
[EventCountry "TUR"]
[SourceTitle "playchess.com"]
[Source "ChessBase"]
[SourceQuality "1"]
[TimeControl "40/5400+30:1800+30"]

1. e4 {[%emt 0:00:30]} c5 {[%emt 0:00:30]} 2. Nf3 {[%emt 0:00:00]} d6 {[%emt 0:00:00]} 3. d4 {[%emt 0:04:00]} cxd4 {[%emt 0:00:00]} 4. Nxd4 {[%emt 0:00:30]} Nf6 {[%emt 0:00:30]} 5. Nc3 {[%emt 0:00:30]} a6 {[%emt 0:00:00]} 6. Bg5 {[%emt 0:00:00]} e6 {[%emt 0:00:00]} 7. f4 {[%emt 0:00:00]} h6 {[%emt 0:00:30]} 8. Bh4 {[%emt 0:00:00]} Qb6 {[%emt 0:01:30]} 9. a3 {[%emt 0:00:00]} Be7 {[%emt 0:01:30]} 10. Bf2 {[%emt 0:00:30]} Qc7 {[%emt 0:00:30]} 11. Qf3 {[%emt 0:02:30]} Nbd7 {[%emt 0:01:30]} 12. O-O-O {[%emt 0:05:30]} b5 {[%emt 0:00:00]} 13. g4 {[%emt 0:12:30]} Bb7 {[%emt 0:01:00]} 14. Bd3 {[%emt 0:10:30]} Rc8 {[%emt 0:15:30]} 15. h4 {[%emt 0:03:30]} h5 {[%emt 0:00:30]} 16. g5 {[%emt 0:02:30]} Ng4 {[%emt 0:00:30]} 17. g6 {[%emt 0:07:30]} Bf6 {[%emt 0:05:30]} 18. gxf7+ {[%emt 0:06:30]} Kxf7 {[%emt 0:00:00]} 19. f5 {[%emt 0:14:30]} e5 {[%emt 0:09:00]} 20. Ne6 {[%emt 0:00:30]} Qa5 {[%emt 0:00:30]} 21. Be1 {[%emt 0:03:30]} Qb6 {[%emt 0:06:30]} 22. Be2 {[%emt 0:05:30]} Qe3+ {[%emt 0:06:30]} 23. Qxe3 {[%emt 0:02:02]} Nxe3 {[%emt 0:00:00]} 24. Rxd6 {[%emt 0:02:06]} Ke7 {[%emt 0:00:00]} 25. Rd2 {[%emt 0:00:15]} Nxf5 {[%emt 0:00:00]} 26. Nd5+ {[%emt 0:13:06]} Kxe6 {[%emt 0:01:00]} 27. exf5+ {[%emt 0:00:39]} Kxf5 {[%emt 0:00:30]} 28. Rf1+ {[%emt 0:04:07]} Ke6 {[%emt 0:00:30]} 29. Nc3 {[%emt 0:00:34]} Nc5 {[%emt 0:00:30]} 30. Bf2 {[%emt 0:00:35]} Ne4 {[%emt 0:02:30]} 31. Nxe4 {[%emt 0:00:23]} Bxe4 {[%emt 0:00:00]} 32. Rfd1 {[%emt 0:00:30]} Rc6 {[%emt 0:01:00]} 33. Bd3 {[%emt 0:00:08]} Bxd3 {[%emt 0:03:30]} 34. Rxd3 {[%emt 0:00:30]} g5 {[%emt 0:02:30]} 35. hxg5 {[%emt 0:00:49]} Bxg5+ {[%emt 0:00:00]} 36. Kb1 {[%emt 0:00:00]} h4 {[%emt 0:01:00]} 37. Rh3 {[%emt 0:00:35]} Kf5 {[%emt 0:08:30]} 38. Rg1 {[%emt 0:00:43]} Rc4 {[%emt 0:00:30]} 39. c3 {[%emt 0:00:40]} Rg4 {[%emt 0:01:30]} 40. Re1 {[%emt 0:00:00]} Rg2 {[%emt 0:00:00]} 41. Bb6 {[%emt 0:04:48]} Kg4 {[%emt 0:04:00]} 42. Rhh1 {[%emt 0:02:30]} Bf4 {[%emt 0:00:00]} 43. a4 {[%emt 0:00:30]} h3 {[%emt 0:01:00]} 44. axb5 {[%emt 0:01:30]} axb5 {[%emt 0:00:30]} 45. Ka2 {[%emt 0:00:30]} h2 {[%emt 0:02:30]} 46. Kb3 {[%emt 0:00:00]} Rh3 {[%emt 0:00:00]} 47. Ka3 {[%emt 0:02:00]} Rd3 {[%emt 0:00:00]} 48. Rb1 {[%emt 0:03:36]} Be3 {[%emt 0:04:30]} 49. Bc7 {[%emt 0:01:22]} Rd5 {[%emt 0:00:30]} 0-1

[Event "World Junior U20 Girls 2018"]
[Site "Gebze"]
[Date "2018.09.12"]
[Round "8"]
[White "Gur, Tuba"]
[Black "Anandpara Jayendra Saloni"]
[Result "1-0"]
[ECO "D11"]
[WhiteElo "1724"]
[BlackElo "1326"]
[Annotator "NA"]
[PlyCount "81"]
[EventDate "2018.09.05"]
[EventType "swiss"]
[EventCountry "TUR"]
[SourceTitle "playchess.com"]
[Source "ChessBase"]
[SourceQuality "1"]
[TimeControl "40/5400+30:1800+30"]

1. d4 {[%emt 0:00:30]} d5 {[%emt 0:00:30]} 2. Bf4 {[%emt 0:00:00]} Bf5 {[%emt 0:01:30]} 3. c4 {[%emt 0:00:00]} c6 {[%emt 0:00:30]} 4. Nc3 {[%emt 0:00:30]} e6 {[%emt 0:00:00]} 5. Nf3 {[%emt 0:00:00]} h6 {[%emt 0:01:00]} 6. Qb3 {[%emt 0:00:00]} b6 {[%emt 0:01:30]} 7. e3 {[%emt 0:00:30]} Nf6 {[%emt 0:00:30]} 8. Ne5 {[%emt 0:00:30]} Bd6 {[%emt 0:01:30]} 9. Be2 {[%emt 0:01:30]} Nfd7 {[%emt 0:12:30]} 10. Nxf7 {[%emt 0:02:30]} Kxf7 {[%emt 0:00:30]} 11. Bxd6 {[%emt 0:00:30]} Nf6 {[%emt 0:15:30]} 12. Be5 {[%emt 0:01:30]} Nbd7 {[%emt 0:00:30]} 13. f4 {[%emt 0:01:30]} Re8 {[%emt 0:14:30]} 14. O-O {[%emt 0:04:30]} Kg8 {[%emt 0:01:30]} 15. cxd5 {[%emt 0:00:30]} cxd5 {[%emt 0:00:30]} 16. Bb5 {[%emt 0:00:30]} a6 {[%emt 0:04:30]} 17. Bc6 {[%emt 0:04:30]} Ra7 {[%emt 0:02:30]} 18. Qa4 {[%emt 0:00:30]} Re7 {[%emt 0:05:30]} 19. Bd6 {[%emt 0:22:30]} Rf7 {[%emt 0:02:30]} 20. Nb5 {[%emt 0:00:00]} Bd3 {[%emt 0:04:30]} 21. Nxa7 {[%emt 0:02:00]} Bxf1 {[%emt 0:01:30]} 22. Rxf1 {[%emt 0:00:00]} Nb8 {[%emt 0:00:30]} 23. Bxb8 {[%emt 0:08:00]} Qxb8 {[%emt 0:00:30]} 24. Qxa6 {[%emt 0:00:00]} Rxa7 {[%emt 0:00:30]} 25. Qb5 {[%emt 0:00:00]} Rxa2 {[%emt 0:00:30]} 26. f5 {[%emt 0:00:30]} Ra5 {[%emt 0:01:30]} 27. Qd3 {[%emt 0:00:30]} Qd6 {[%emt 0:00:30]} 28. Bb7 {[%emt 0:12:30]} Ra2 {[%emt 0:04:30]} 29. Qb3 {[%emt 0:06:30]} Ra7 {[%emt 0:08:01]} 30. Bc8 {[%emt 0:00:00]} exf5 {[%emt 0:04:08]} 31. Bxf5 {[%emt 0:00:00]} Re7 {[%emt 0:00:08]} 32. Rc1 {[%emt 0:02:30]} Kf7 {[%emt 0:01:08]} 33. Qc2 {[%emt 0:01:30]} Rxe3 {[%emt 0:03:42]} 34. Bg6+ {[%emt 0:00:30]} Ke7 {[%emt 0:01:25]} 35. Qf2 {[%emt 0:00:30]} Ng4 {[%emt 0:03:15]} 36. Qf7+ {[%emt 0:00:30]} Kd8 {[%emt 0:00:11]} 37. Qg8+ {[%emt 0:00:30]} Ke7 {[%emt 0:01:40]} 38. Qe8+ {[%emt 0:00:30]} Kf6 {[%emt 0:00:00]} 39. Qf7+ {[%emt 0:00:30]} Kg5 {[%emt 0:00:59]} 40. Qf5+ {[%emt 0:00:30]} Kh4 {[%emt 0:00:19]} 41. Qh5# {[%emt 0:00:00]} 1-0

[Event "World Junior U20 Girls 2018"]
[Site "Gebze"]
[Date "2018.09.12"]
[Round "8"]
[White "Incecik, Seyma Zeynep"]
[Black "Stanciu, Ioana-Georgiana"]
[Result "0-1"]
[ECO "A01"]
[WhiteElo "1716"]
[BlackElo "2000"]
[Annotator "NA"]
[PlyCount "120"]
[EventDate "2018.09.05"]
[EventType "swiss"]
[EventCountry "TUR"]
[SourceTitle "playchess.com"]
[Source "ChessBase"]
[SourceQuality "1"]
[TimeControl "40/5400+30:1800+30"]

1. b3 {[%emt 0:00:30]} e5 {[%emt 0:00:30]} 2. Bb2 {[%emt 0:00:30]} d6 {[%emt 0:00:00]} 3. e3 {[%emt 0:00:00]} Nf6 {[%emt 0:00:00]} 4. d4 {[%emt 0:00:00]} exd4 {[%emt 0:00:00]} 5. Qxd4 {[%emt 0:00:30]} Nc6 {[%emt 0:00:00]} 6. Bb5 {[%emt 0:00:30]} Bd7 {[%emt 0:03:30]} 7. Bxc6 {[%emt 0:00:30]} Bxc6 {[%emt 0:00:00]} 8. Nf3 {[%emt 0:00:30]} Be7 {[%emt 0:11:00]} 9. Nc3 {[%emt 0:00:30]} Qd7 {[%emt 0:04:30]} 10. O-O-O {[%emt 0:06:30]} Ng4 {[%emt 0:05:30]} 11. e4 {[%emt 0:07:30]} Bf6 {[%emt 0:02:30]} 12. e5 {[%emt 0:18:30]} dxe5 {[%emt 0:18:30]} 13. Qxd7+ {[%emt 0:08:30]} Bxd7 {[%emt 0:00:30]} 14. Rhe1 {[%emt 0:11:30]} O-O-O {[%emt 0:00:30]} 15. Ne4 {[%emt 0:11:30]} Bc6 {[%emt 0:05:30]} 16. Rxd8+ {[%emt 0:11:08]} Rxd8 {[%emt 0:00:30]} 17. h3 {[%emt 0:00:43]} Bxe4 {[%emt 0:13:30]} 18. hxg4 {[%emt 0:03:48]} Bxf3 {[%emt 0:00:30]} 19. gxf3 {[%emt 0:00:30]} Bg5+ {[%emt 0:00:30]} 20. Kb1 {[%emt 0:00:05]} f6 {[%emt 0:00:30]} 21. Rh1 {[%emt 0:03:05]} h6 {[%emt 0:01:30]} 22. Rf1 {[%emt 0:02:04]} Kd7 {[%emt 0:03:30]} 23. Bc3 {[%emt 0:01:30]} Ke6 {[%emt 0:01:30]} 24. Re1 {[%emt 0:00:18]} Kf7 {[%emt 0:03:30]} 25. Ba5 {[%emt 0:00:52]} Rd7 {[%emt 0:00:30]} 26. Bc3 {[%emt 0:03:08]} Kg6 {[%emt 0:02:30]} 27. Rh1 {[%emt 0:00:04]} Bf4 {[%emt 0:01:30]} 28. a3 {[%emt 0:01:22]} Rd6 {[%emt 0:03:32]} 29. Bb4 {[%emt 0:01:00]} Rd5 {[%emt 0:00:13]} 30. a4 {[%emt 0:00:12]} c6 {[%emt 0:03:34]} 31. Kb2 {[%emt 0:00:57]} Kg5 {[%emt 0:03:36]} 32. Rh5+ {[%emt 0:02:22]} Kg6 {[%emt 0:00:03]} 33. Rh1 {[%emt 0:00:00]} a5 {[%emt 0:00:24]} 34. c4 {[%emt 0:01:13]} Rd3 {[%emt 0:00:49]} 35. Bxa5 {[%emt 0:00:30]} Rxf3 {[%emt 0:00:14]} 36. Bb6 {[%emt 0:00:00]} e4 {[%emt 0:03:58]} 37. Re1 {[%emt 0:00:26]} Be5+ {[%emt 0:00:30]} 38. Ka2 {[%emt 0:01:15]} f5 {[%emt 0:00:57]} 39. Rd1 {[%emt 0:01:57]} Rd3 {[%emt 0:00:00]} 40. gxf5+ {[%emt 0:00:00]} Kxf5 {[%emt 0:00:00]} 41. Rg1 {[%emt 0:05:31]} g5 {[%emt 0:06:10]} 42. Rh1 {[%emt 0:01:30]} Kg6 {[%emt 0:00:00]} 43. Re1 {[%emt 0:01:30]} Kf5 {[%emt 0:01:00]} 44. Rh1 {[%emt 0:00:30]} Bg7 {[%emt 0:00:30]} 45. a5 {[%emt 0:01:30]} g4 {[%emt 0:06:30]} 46. Rh5+ {[%emt 0:02:30]} Kg6 {[%emt 0:00:30]} 47. Rh2 {[%emt 0:07:30]} h5 {[%emt 0:00:30]} 48. Be3 {[%emt 0:07:46]} Bf6 {[%emt 0:00:30]} 49. Bf4 {[%emt 0:01:39]} Rf3 {[%emt 0:01:30]} 50. Be3 {[%emt 0:01:16]} h4 {[%emt 0:00:30]} 51. Rg2 {[%emt 0:00:38]} Kf5 {[%emt 0:00:30]} 52. Bc5 {[%emt 0:01:14]} Rd3 {[%emt 0:05:30]} 53. Rg1 {[%emt 0:01:00]} Bd4 {[%emt 0:02:30]} 54. Be7 {[%emt 0:00:43]} Bxf2 {[%emt 0:00:51]} 55. Rf1 {[%emt 0:00:03]} Rd2+ {[%emt 0:00:09]} 56. Kb1 {[%emt 0:00:42]} h3 {[%emt 0:00:30]} 57. Bc5 {[%emt 0:00:44]} g3 {[%emt 0:00:30]} 58. Be3 {[%emt 0:00:42]} Re2 {[%emt 0:00:30]} 59. Bb6 {[%emt 0:00:00]} Re1+ {[%emt 0:00:30]} 60. Rxe1 {[%emt 0:00:29]} Bxe1 {[%emt 0:00:30]} 0-1

[Event "World Junior U20 Girls 2018"]
[Site "Gebze"]
[Date "2018.09.12"]
[Round "8"]
[White "Rousseau, Christilla"]
[Black "Nemcova, Karin"]
[Result "0-1"]
[ECO "D02"]
[WhiteElo "1677"]
[BlackElo "1990"]
[Annotator "NA"]
[PlyCount "110"]
[EventDate "2018.09.05"]
[EventType "swiss"]
[EventCountry "TUR"]
[SourceTitle "playchess.com"]
[Source "ChessBase"]
[SourceQuality "1"]
[TimeControl "40/5400+30:1800+30"]

1. d4 {[%emt 0:00:30]} d5 {[%emt 0:00:30]} 2. Bf4 {[%emt 0:00:30]} Nf6 {[%emt 0:00:00]} 3. e3 {[%emt 0:00:00]} c5 {[%emt 0:00:00]} 4. c3 {[%emt 0:00:00]} e6 {[%emt 0:00:30]} 5. Nd2 {[%emt 0:00:00]} Bd6 {[%emt 0:00:30]} 6. Bg3 {[%emt 0:00:00]} O-O {[%emt 0:00:30]} 7. Ngf3 {[%emt 0:00:30]} Qc7 {[%emt 0:00:00]} 8. Bd3 {[%emt 0:00:30]} Nbd7 {[%emt 0:00:00]} 9. Qe2 {[%emt 0:02:30]} e5 {[%emt 0:03:30]} 10. dxe5 {[%emt 0:03:30]} Nxe5 {[%emt 0:00:30]} 11. Nxe5 {[%emt 0:02:30]} Bxe5 {[%emt 0:00:00]} 12. Bxe5 {[%emt 0:02:30]} Qxe5 {[%emt 0:00:00]} 13. Nf3 {[%emt 0:01:30]} Qc7 {[%emt 0:03:30]} 14. h3 {[%emt 0:02:30]} Bd7 {[%emt 0:01:30]} 15. O-O {[%emt 0:00:30]} Rfe8 {[%emt 0:01:30]} 16. Qc2 {[%emt 0:04:30]} Bc6 {[%emt 0:05:30]} 17. Rfd1 {[%emt 0:09:30]} Rad8 {[%emt 0:00:30]} 18. Be2 {[%emt 0:05:30]} Qb6 {[%emt 0:06:30]} 19. Qb3 {[%emt 0:06:30]} Qa5 {[%emt 0:06:30]} 20. a4 {[%emt 0:03:30]} Re4 {[%emt 0:05:30]} 21. Bb5 {[%emt 0:04:30]} a6 {[%emt 0:10:30]} 22. Bxc6 {[%emt 0:05:30]} bxc6 {[%emt 0:00:30]} 23. Nd2 {[%emt 0:17:30]} Ree8 {[%emt 0:06:30]} 24. Nf3 {[%emt 0:05:30]} Rb8 {[%emt 0:01:30]} 25. Qc2 {[%emt 0:00:30]} c4 {[%emt 0:02:30]} 26. Nd4 {[%emt 0:01:30]} Qb6 {[%emt 0:05:30]} 27. Rdb1 {[%emt 0:02:46]} c5 {[%emt 0:04:30]} 28. a5 {[%emt 0:00:46]} Qc7 {[%emt 0:00:30]} 29. Ne2 {[%emt 0:01:32]} Rb5 {[%emt 0:01:30]} 30. Rd1 {[%emt 0:04:10]} Rxa5 {[%emt 0:05:30]} 31. Rxa5 {[%emt 0:00:47]} Qxa5 {[%emt 0:00:30]} 32. Nf4 {[%emt 0:00:30]} Rd8 {[%emt 0:00:00]} 33. Qf5 {[%emt 0:00:17]} Qa4 {[%emt 0:01:00]} 34. Rd2 {[%emt 0:03:08]} Qd7 {[%emt 0:01:30]} 35. Qxd7 {[%emt 0:05:43]} Rxd7 {[%emt 0:00:00]} 36. f3 {[%emt 0:00:00]} Kf8 {[%emt 0:03:00]} 37. h4 {[%emt 0:01:16]} Ke7 {[%emt 0:00:30]} 38. g4 {[%emt 0:00:11]} d4 {[%emt 0:03:30]} 39. exd4 {[%emt 0:01:11]} cxd4 {[%emt 0:00:30]} 40. Rxd4 {[%emt 0:00:00]} Rxd4 {[%emt 0:03:30]} 41. cxd4 {[%emt 0:02:13]} Kd6 {[%emt 0:00:00]} 42. Kf2 {[%emt 0:02:30]} Nd5 {[%emt 0:00:00]} 43. Ng2 {[%emt 0:05:30]} c3 {[%emt 0:02:30]} 44. bxc3 {[%emt 0:01:30]} Nxc3 {[%emt 0:00:00]} 45. Nf4 {[%emt 0:01:30]} a5 {[%emt 0:01:00]} 46. Ke1 {[%emt 0:01:30]} Nb5 {[%emt 0:00:30]} 47. Ne2 {[%emt 0:04:57]} Kd5 {[%emt 0:00:00]} 48. Nc1 {[%emt 0:02:04]} Nxd4 {[%emt 0:00:00]} 49. Kf2 {[%emt 0:00:00]} Kc4 {[%emt 0:00:30]} 50. Ke3 {[%emt 0:00:32]} a4 {[%emt 0:00:30]} 51. f4 {[%emt 0:03:21]} a3 {[%emt 0:00:30]} 52. Na2 {[%emt 0:01:35]} Kb3 {[%emt 0:01:30]} 53. Nc1+ {[%emt 0:01:02]} Kc2 {[%emt 0:02:30]} 54. Na2 {[%emt 0:01:59]} Kb2 {[%emt 0:00:00]} 55. Nb4 {[%emt 0:00:49]} Nc2+ {[%emt 0:00:00]} 0-1

[Event "World Junior U20 Girls 2018"]
[Site "Gebze"]
[Date "2018.09.12"]
[Round "8"]
[White "Esti, Kubra Selenay"]
[Black "Aydin, Gulenay"]
[Result "0-1"]
[ECO "E73"]
[WhiteElo "1662"]
[BlackElo "1882"]
[Annotator "NA"]
[PlyCount "70"]
[EventDate "2018.09.05"]
[EventType "swiss"]
[EventCountry "TUR"]
[SourceTitle "playchess.com"]
[Source "ChessBase"]
[SourceQuality "1"]
[TimeControl "40/5400+30:1800+30"]

1. d4 {[%emt 0:00:30]} Nf6 {[%emt 0:00:30]} 2. c4 {[%emt 0:00:00]} g6 {[%emt 0:00:30]} 3. Nc3 {[%emt 0:00:00]} Bg7 {[%emt 0:00:30]} 4. e4 {[%emt 0:00:00]} d6 {[%emt 0:00:00]} 5. Be2 {[%emt 0:00:00]} O-O {[%emt 0:00:00]} 6. Be3 {[%emt 0:00:30]} c5 {[%emt 0:03:30]} 7. d5 {[%emt 0:00:30]} e6 {[%emt 0:08:30]} 8. Nf3 {[%emt 0:06:30]} exd5 {[%emt 0:01:30]} 9. cxd5 {[%emt 0:00:30]} Re8 {[%emt 0:02:30]} 10. Nd2 {[%emt 0:00:30]} Nbd7 {[%emt 0:11:30]} 11. O-O {[%emt 0:01:30]} a6 {[%emt 0:02:30]} 12. a4 {[%emt 0:01:30]} Rb8 {[%emt 0:00:30]} 13. f4 {[%emt 0:09:30]} Nf8 {[%emt 0:18:30]} 14. h3 {[%emt 0:26:30]} b5 {[%emt 0:21:30]} 15. axb5 {[%emt 0:24:30]} axb5 {[%emt 0:00:30]} 16. Qb1 {[%emt 0:01:30]} b4 {[%emt 0:03:30]} 17. Nd1 {[%emt 0:00:30]} Bd7 {[%emt 0:02:52]} 18. Re1 {[%emt 0:10:42]} Bb5 {[%emt 0:00:36]} 19. Bxb5 {[%emt 0:01:21]} Rxb5 {[%emt 0:00:30]} 20. Nf2 {[%emt 0:00:12]} Rb7 {[%emt 0:03:31]} 21. Qd3 {[%emt 0:04:22]} N8d7 {[%emt 0:01:35]} 22. Nc4 {[%emt 0:01:47]} Nb6 {[%emt 0:01:06]} 23. Na5 {[%emt 0:01:33]} Ra7 {[%emt 0:03:44]} 24. Nc6 {[%emt 0:04:06]} Rxa1 {[%emt 0:00:10]} 25. Rxa1 {[%emt 0:00:04]} Qc8 {[%emt 0:00:47]} 26. Ra7 {[%emt 0:01:31]} Nfd7 {[%emt 0:00:40]} 27. Qe2 {[%emt 0:01:33]} f5 {[%emt 0:04:01]} 28. Qf3 {[%emt 0:01:43]} Bxb2 {[%emt 0:02:00]} 29. e5 {[%emt 0:00:32]} dxe5 {[%emt 0:01:14]} 30. Qe2 {[%emt 0:00:33]} exf4 {[%emt 0:00:52]} 31. Qxb2 {[%emt 0:00:29]} fxe3 {[%emt 0:00:24]} 32. Nd3 {[%emt 0:00:28]} e2 {[%emt 0:00:42]} 33. Kf2 {[%emt 0:00:19]} Nxd5 {[%emt 0:00:39]} 34. Nde5 {[%emt 0:00:42]} Qxc6 {[%emt 0:01:21]} 35. Rxd7 {[%emt 0:00:38]} Qxd7 {[%emt 0:00:12]} 0-1